[Event "December 5 Early 2023"]
[Site "https://www.chess.com"]
[Date "2023.12.05"]
[Round "1"]
[White "Baches Garcia, Guillermo"]
[Black "Aronian, Levon"]
[Result "0-1"]
[Board "10"]
[TimeControl "180+1"]
[WhiteFideId "2209764"]
[BlackFideId "13300474"]
[WhiteElo "2527"]
[BlackElo "3053"]
[WhiteTeam "ESP"]
[BlackTeam "USA"]
[WhiteClock "0:00:05"]
[BlackClock "0:00:39"]

1. d4 {[%clk 0:03:00]}  Nf6 {[%clk 0:02:59]} 2. Nf3 {[%clk 0:03:01]}  g6 {[%clk 0:03:00]} 3. Bg5 {[%clk 0:03:02]}  Bg7 {[%clk 0:02:59]} 4. Nbd2 {[%clk 0:03:02]}  O-O {[%clk 0:02:59]} 5. e3 {[%clk 0:03:02]}  d6 {[%clk 0:02:59]} 6. Bc4 {[%clk 0:03:02]}  Nc6 {[%clk 0:02:59]} 7. c3 {[%clk 0:03:00]}  Qe8 {[%clk 0:02:58]} 8. O-O {[%clk 0:02:56]}  e5 {[%clk 0:02:58]} 9. h3 {[%clk 0:02:57]}  Kh8 {[%clk 0:02:52]} 10. a4 {[%clk 0:02:42]}  a5 {[%clk 0:02:50]} 11. Re1 {[%clk 0:02:36]}  Nd7 {[%clk 0:02:43]} 12. Bh4 {[%clk 0:02:06]}  Nb6 {[%clk 0:02:37]} 13. Bb5 {[%clk 0:02:02]}  Bd7 {[%clk 0:02:27]} 14. Nc4 {[%clk 0:01:36]}  Nxc4 {[%clk 0:02:18]} 15. Bxc4 {[%clk 0:01:37]}  f6 {[%clk 0:02:15]} 16. e4 {[%clk 0:01:33]}  Bh6 {[%clk 0:02:05]} 17. Bg3 {[%clk 0:01:29]}  Rd8 {[%clk 0:01:58]} 18. Qb3 {[%clk 0:01:28]}  b6 {[%clk 0:01:58]} 19. Rad1 {[%clk 0:01:26]}  Qe7 {[%clk 0:01:57]} 20. Bb5 {[%clk 0:01:22]}  Nb8 {[%clk 0:01:56]} 21. Bf1 {[%clk 0:01:14]}  Be6 {[%clk 0:01:50]} 22. c4 {[%clk 0:01:08]}  Nd7 {[%clk 0:01:48]} 23. Qc3 {[%clk 0:01:03]}  c5 {[%clk 0:01:37]} 24. dxe5 {[%clk 0:00:56]}  dxe5 {[%clk 0:01:36]} 25. b3 {[%clk 0:00:55]}  Kg8 {[%clk 0:01:33]} 26. Nh2 {[%clk 0:00:52]}  Nb8 {[%clk 0:01:32]} 27. Ng4 {[%clk 0:00:51]}  Bxg4 {[%clk 0:01:31]} 28. hxg4 {[%clk 0:00:52]}  Nc6 {[%clk 0:01:31]} 29. f3 {[%clk 0:00:47]}  Rd4 {[%clk 0:01:28]} 30. Bf2 {[%clk 0:00:46]}  Nb4 {[%clk 0:01:25]} 31. Bxd4 {[%clk 0:00:29]}  cxd4 {[%clk 0:01:25]} 32. Qb2 {[%clk 0:00:27]}  Be3+ {[%clk 0:01:20]} 33. Rxe3 {[%clk 0:00:15]}  dxe3 {[%clk 0:01:21]} 34. Qe2 {[%clk 0:00:15]}  Qc5 {[%clk 0:01:20]} 35. Re1 {[%clk 0:00:15]}  Rd8 {[%clk 0:01:13]} 36. Qxe3 {[%clk 0:00:15]}  Nc2 {[%clk 0:01:03]} 37. Qxc5 {[%clk 0:00:14]}  bxc5 {[%clk 0:01:03]} 38. Re2 {[%clk 0:00:14]}  Nd4 {[%clk 0:01:03]} 39. Re3 {[%clk 0:00:14]}  Rb8 {[%clk 0:01:02]} 40. Kf2 {[%clk 0:00:13]}  Nxb3 {[%clk 0:01:00]} 41. Be2 {[%clk 0:00:11]}  Nd4 {[%clk 0:01:00]} 42. Bd1 {[%clk 0:00:11]}  Rb2+ {[%clk 0:00:59]} 43. Kf1 {[%clk 0:00:10]}  Kg7 {[%clk 0:00:57]} 44. Rd3 {[%clk 0:00:10]}  Kh6 {[%clk 0:00:56]} 45. g3 {[%clk 0:00:10]}  Kg5 {[%clk 0:00:54]} 46. Ke1 {[%clk 0:00:10]}  Rg2 {[%clk 0:00:50]} 47. Rd2 {[%clk 0:00:09]}  Rxg3 {[%clk 0:00:49]} 48. Rf2 {[%clk 0:00:09]}  Kf4 {[%clk 0:00:46]} 49. Kd2 {[%clk 0:00:09]}  Rh3 {[%clk 0:00:45]} 50. Kc3 {[%clk 0:00:08]}  Rh1 {[%clk 0:00:44]} 51. Bb3 {[%clk 0:00:06]}  Ke3 {[%clk 0:00:41]} 52. Rb2 {[%clk 0:00:06]}  Ne2+ {[%clk 0:00:40]} 53. Kc2 {[%clk 0:00:05]}  Rc1# {[%clk 0:00:39]} 0-1

[Event "December 5 Early 2023"]
[Site "https://www.chess.com"]
[Date "2023.12.05"]
[Round "1"]
[White "Masague Artero, Guerau"]
[Black "Oparin, Grigoriy"]
[Result "0-1"]
[Board "12"]
[TimeControl "180+1"]
[WhiteFideId "32098952"]
[BlackFideId "24125890"]
[WhiteElo "2524"]
[BlackElo "3051"]
[WhiteTeam "ESP"]
[BlackTeam "USA"]
[WhiteClock "0:00:00"]
[BlackClock "0:01:16"]

1. e4 {[%clk 0:03:00]}  c5 {[%clk 0:03:00]} 2. Nc3 {[%clk 0:03:01]}  Nc6 {[%clk 0:03:00]} 3. Bb5 {[%clk 0:03:01]}  Nd4 {[%clk 0:02:59]} 4. Bc4 {[%clk 0:03:00]}  e6 {[%clk 0:02:58]} 5. Nf3 {[%clk 0:03:01]}  a6 {[%clk 0:02:58]} 6. d3 {[%clk 0:02:59]}  b5 {[%clk 0:02:57]} 7. Bb3 {[%clk 0:02:58]}  Nxb3 {[%clk 0:02:57]} 8. axb3 {[%clk 0:02:59]}  Bb7 {[%clk 0:02:57]} 9. O-O {[%clk 0:03:00]}  Nf6 {[%clk 0:02:55]} 10. e5 {[%clk 0:02:56]}  Nd5 {[%clk 0:02:55]} 11. Ne4 {[%clk 0:02:56]}  Qc7 {[%clk 0:02:48]} 12. Re1 {[%clk 0:02:23]}  f5 {[%clk 0:02:40]} 13. exf6 {[%clk 0:02:10]}  Nxf6 {[%clk 0:02:40]} 14. Nxf6+ {[%clk 0:01:53]}  gxf6 {[%clk 0:02:41]} 15. Ng5 {[%clk 0:01:46]}  O-O-O {[%clk 0:02:29]} 16. Nf7 {[%clk 0:01:39]}  Rg8 {[%clk 0:02:30]} 17. f3 {[%clk 0:01:22]}  Re8 {[%clk 0:02:22]} 18. Nh6 {[%clk 0:00:55]}  Rg6 {[%clk 0:02:22]} 19. Ng4 {[%clk 0:00:55]}  Bd6 {[%clk 0:02:20]} 20. h3 {[%clk 0:00:47]}  Reg8 {[%clk 0:02:20]} 21. Kh1 {[%clk 0:00:36]}  h5 {[%clk 0:02:19]} 22. Ne3 {[%clk 0:00:37]}  Rg3 {[%clk 0:02:09]} 23. Rf1 {[%clk 0:00:27]}  Bf4 {[%clk 0:02:08]} 24. Rf2 {[%clk 0:00:25]}  Qe5 {[%clk 0:02:06]} 25. Nf1 {[%clk 0:00:21]}  Bxf3 {[%clk 0:01:26]} 26. Bxf4 {[%clk 0:00:11]}  Rxh3+ {[%clk 0:01:24]} 27. Kg1 {[%clk 0:00:11]}  Qxf4 {[%clk 0:01:21]} 28. Qd2 {[%clk 0:00:00]}  Qh4 {[%clk 0:01:16]} 0-1

[Event "December 5 Early 2023"]
[Site "https://www.chess.com"]
[Date "2023.12.05"]
[Round "1"]
[White "Tabatabaei, M. Amin"]
[Black "Yelisieiev, Yevhenii"]
[Result "1-0"]
[Board "15"]
[TimeControl "180+1"]
[WhiteFideId "12521213"]
[BlackFideId "14139642"]
[WhiteElo "3034"]
[BlackElo "2518"]
[WhiteTeam "IRI"]
[BlackTeam "GER"]
[WhiteClock "0:02:17"]
[BlackClock "0:00:03"]

1. d4 {[%clk 0:03:00]}  d6 {[%clk 0:03:00]} 2. e4 {[%clk 0:03:00]}  Nf6 {[%clk 0:02:58]} 3. Nc3 {[%clk 0:03:01]}  e5 {[%clk 0:02:58]} 4. Nf3 {[%clk 0:03:00]}  Nbd7 {[%clk 0:02:57]} 5. Rg1 {[%clk 0:03:00]}  c6 {[%clk 0:02:56]} 6. g4 {[%clk 0:02:59]}  h6 {[%clk 0:02:56]} 7. h4 {[%clk 0:02:58]}  exd4 {[%clk 0:02:54]} 8. Nxd4 {[%clk 0:02:59]}  Ne5 {[%clk 0:02:54]} 9. f3 {[%clk 0:02:59]}  Nfxg4 {[%clk 0:02:43]} 10. Bf4 {[%clk 0:02:42]}  Nf6 {[%clk 0:02:09]} 11. Qd2 {[%clk 0:02:42]}  Nh5 {[%clk 0:02:06]} 12. O-O-O {[%clk 0:02:42]}  Qxh4 {[%clk 0:01:51]} 13. Bxe5 {[%clk 0:02:36]}  dxe5 {[%clk 0:01:51]} 14. Ndb5 {[%clk 0:02:37]}  Qe7 {[%clk 0:01:18]} 15. Bc4 {[%clk 0:02:31]}  a6 {[%clk 0:01:05]} 16. Nd5 {[%clk 0:02:25]}  cxd5 {[%clk 0:01:01]} 17. Qxd5 {[%clk 0:02:26]}  Be6 {[%clk 0:00:54]} 18. Qxe5 {[%clk 0:02:22]}  Rc8 {[%clk 0:00:17]} 19. Bxe6 {[%clk 0:02:18]}  Qxe6 {[%clk 0:00:14]} 20. Nc7+ {[%clk 0:02:17]}  Rxc7 {[%clk 0:00:14]} 21. Qxc7 {[%clk 0:02:18]}  Be7 {[%clk 0:00:04]} 22. Qb8+ {[%clk 0:02:18]}  Bd8 {[%clk 0:00:03]} 23. Qxd8# {[%clk 0:02:17]} 1-0

[Event "December 5 Early 2023"]
[Site "https://www.chess.com"]
[Date "2023.12.05"]
[Round "1"]
[White "Andreev, Konstantin"]
[Black "Praggnanandhaa R"]
[Result "0-1"]
[Board "16"]
[TimeControl "180+1"]
[WhiteFideId "24239305"]
[BlackFideId "25059530"]
[WhiteElo "2518"]
[BlackElo "3021"]
[WhiteTeam "ITA"]
[BlackTeam "IND"]
[WhiteClock "0:00:01"]
[BlackClock "0:00:42"]

1. e4 {[%clk 0:03:00]}  Nc6 {[%clk 0:02:56]} 2. Nf3 {[%clk 0:03:00]}  d6 {[%clk 0:02:56]} 3. d4 {[%clk 0:03:00]}  Nf6 {[%clk 0:02:56]} 4. Nc3 {[%clk 0:03:01]}  g6 {[%clk 0:02:57]} 5. Bc4 {[%clk 0:02:58]}  Bg7 {[%clk 0:02:52]} 6. h3 {[%clk 0:02:58]}  O-O {[%clk 0:02:48]} 7. Bb3 {[%clk 0:02:58]}  a6 {[%clk 0:02:40]} 8. a4 {[%clk 0:02:57]}  Nd7 {[%clk 0:02:36]} 9. O-O {[%clk 0:02:57]}  e5 {[%clk 0:02:36]} 10. Be3 {[%clk 0:02:55]}  h6 {[%clk 0:02:34]} 11. Qd2 {[%clk 0:02:54]}  Kh7 {[%clk 0:02:35]} 12. Rfe1 {[%clk 0:02:54]}  f5 {[%clk 0:02:22]} 13. exf5 {[%clk 0:02:53]}  gxf5 {[%clk 0:02:23]} 14. dxe5 {[%clk 0:02:54]}  dxe5 {[%clk 0:02:22]} 15. g3 {[%clk 0:02:20]}  Qe8 {[%clk 0:02:10]} 16. Rad1 {[%clk 0:02:16]}  Qh5 {[%clk 0:02:08]} 17. Kg2 {[%clk 0:02:07]}  Nf6 {[%clk 0:02:04]} 18. Bc5 {[%clk 0:01:50]}  Re8 {[%clk 0:01:36]} 19. Qe2 {[%clk 0:01:43]}  b6 {[%clk 0:01:30]} 20. Ba3 {[%clk 0:01:42]}  Bb7 {[%clk 0:01:30]} 21. Nd5 {[%clk 0:01:40]}  Nxd5 {[%clk 0:01:21]} 22. Bxd5 {[%clk 0:01:40]}  Nd4 {[%clk 0:01:22]} 23. Nxd4 {[%clk 0:01:39]}  Bxd5+ {[%clk 0:01:20]} 24. Kh2 {[%clk 0:01:32]}  Qxe2 {[%clk 0:01:13]} 25. Nxe2 {[%clk 0:01:33]}  Rad8 {[%clk 0:01:13]} 26. Nc3 {[%clk 0:01:18]}  Bf3 {[%clk 0:01:13]} 27. Rd3 {[%clk 0:00:58]}  e4 {[%clk 0:01:13]} 28. Rxd8 {[%clk 0:00:50]}  Rxd8 {[%clk 0:01:14]} 29. Nb1 {[%clk 0:00:47]}  Be5 {[%clk 0:01:10]} 30. c3 {[%clk 0:00:46]}  h5 {[%clk 0:01:09]} 31. Be7 {[%clk 0:00:45]}  Rd3 {[%clk 0:00:59]} 32. Bg5 {[%clk 0:00:43]}  Kg6 {[%clk 0:00:56]} 33. h4 {[%clk 0:00:40]}  f4 {[%clk 0:00:56]} 34. Bxf4 {[%clk 0:00:28]}  Bxf4 {[%clk 0:00:56]} 35. gxf4 {[%clk 0:00:29]}  Kf5 {[%clk 0:00:57]} 36. Kg3 {[%clk 0:00:30]}  Bg4+ {[%clk 0:00:50]} 37. Re3 {[%clk 0:00:29]}  Rd1 {[%clk 0:00:50]} 38. Na3 {[%clk 0:00:29]}  Bf3 {[%clk 0:00:48]} 39. Nc4 {[%clk 0:00:25]}  Rg1+ {[%clk 0:00:47]} 40. Kh2 {[%clk 0:00:25]}  Rg2+ {[%clk 0:00:46]} 41. Kh3 {[%clk 0:00:26]}  Kxf4 {[%clk 0:00:41]} 42. Re1 {[%clk 0:00:02]}  Rxf2 {[%clk 0:00:41]} 43. Ne3 {[%clk 0:00:01]}  Bg4+ {[%clk 0:00:42]} 0-1

[Event "December 5 Early 2023"]
[Site "https://www.chess.com"]
[Date "2023.12.05"]
[Round "1"]
[White "Xiong, Jeffery"]
[Black "Rizzo, Tobias"]
[Result "1/2-1/2"]
[Board "17"]
[TimeControl "180+1"]
[WhiteFideId "2047640"]
[BlackFideId "30942691"]
[WhiteElo "3016"]
[BlackElo "2516"]
[WhiteTeam "USA"]
[BlackTeam "USA"]
[WhiteClock "0:00:23"]
[BlackClock "0:00:30"]

1. e4 {[%clk 0:03:00]}  c5 {[%clk 0:02:59]} 2. Nf3 {[%clk 0:03:01]}  e6 {[%clk 0:02:58]} 3. c3 {[%clk 0:03:00]}  Nf6 {[%clk 0:02:58]} 4. Bd3 {[%clk 0:03:00]}  Nc6 {[%clk 0:02:56]} 5. Bc2 {[%clk 0:03:00]}  d5 {[%clk 0:02:54]} 6. e5 {[%clk 0:03:01]}  Nd7 {[%clk 0:02:54]} 7. d4 {[%clk 0:03:01]}  Be7 {[%clk 0:02:46]} 8. Nbd2 {[%clk 0:03:00]}  a6 {[%clk 0:02:33]} 9. Nf1 {[%clk 0:03:00]}  b5 {[%clk 0:02:31]} 10. Ng3 {[%clk 0:03:00]}  h5 {[%clk 0:02:15]} 11. O-O {[%clk 0:02:55]}  h4 {[%clk 0:02:14]} 12. Ne2 {[%clk 0:02:55]}  h3 {[%clk 0:02:03]} 13. g3 {[%clk 0:02:55]}  Bb7 {[%clk 0:02:04]} 14. Be3 {[%clk 0:02:55]}  Rc8 {[%clk 0:02:02]} 15. Qd2 {[%clk 0:02:46]}  b4 {[%clk 0:01:57]} 16. Ba4 {[%clk 0:02:29]}  Qa5 {[%clk 0:01:28]} 17. Qd1 {[%clk 0:01:53]}  c4 {[%clk 0:01:20]} 18. Bg5 {[%clk 0:01:47]}  Ba8 {[%clk 0:01:10]} 19. Bxe7 {[%clk 0:01:45]}  Kxe7 {[%clk 0:01:09]} 20. Bc2 {[%clk 0:01:41]}  Rb8 {[%clk 0:01:07]} 21. Qd2 {[%clk 0:01:41]}  bxc3 {[%clk 0:00:59]} 22. bxc3 {[%clk 0:01:40]}  Rb2 {[%clk 0:00:58]} 23. Rfc1 {[%clk 0:01:36]}  Rhb8 {[%clk 0:00:56]} 24. Qg5+ {[%clk 0:01:35]}  Kf8 {[%clk 0:00:56]} 25. Nf4 {[%clk 0:01:36]}  Qxc3 {[%clk 0:00:51]} 26. Bd1 {[%clk 0:01:09]}  Qa3 {[%clk 0:00:44]} 27. Nxh3 {[%clk 0:01:00]}  Rxa2 {[%clk 0:00:38]} 28. Rxa2 {[%clk 0:00:59]}  Qxa2 {[%clk 0:00:39]} 29. Nf4 {[%clk 0:00:52]}  Rb2 {[%clk 0:00:33]} 30. Nh5 {[%clk 0:00:36]}  g6 {[%clk 0:00:29]} 31. Qh6+ {[%clk 0:00:36]}  Ke7 {[%clk 0:00:29]} 32. Qg5+ {[%clk 0:00:37]}  Kf8 {[%clk 0:00:29]} 33. Qh6+ {[%clk 0:00:37]}  Ke7 {[%clk 0:00:30]} 34. Qg5+ {[%clk 0:00:23]}  Kf8 {[%clk 0:00:30]} 1/2-1/2

[Event "December 5 Early 2023"]
[Site "https://www.chess.com"]
[Date "2023.12.05"]
[Round "1"]
[White "Koc, Przemyslaw"]
[Black "Zemlyanskii, Ivan"]
[Result "0-1"]
[Board "18"]
[TimeControl "180+1"]
[WhiteFideId "1109081"]
[BlackFideId "24249971"]
[WhiteElo "2514"]
[BlackElo "3009"]
[WhiteTeam "POL"]
[BlackTeam "RUS"]
[WhiteClock "0:00:18"]
[BlackClock "0:00:14"]

1. d4 {[%clk 0:03:00]}  d5 {[%clk 0:02:59]} 2. Nf3 {[%clk 0:03:00]}  Nf6 {[%clk 0:02:59]} 3. g3 {[%clk 0:03:00]}  c5 {[%clk 0:02:59]} 4. Bg2 {[%clk 0:03:00]}  cxd4 {[%clk 0:02:59]} 5. O-O {[%clk 0:02:58]}  e6 {[%clk 0:02:58]} 6. Nxd4 {[%clk 0:02:57]}  e5 {[%clk 0:02:59]} 7. Nb3 {[%clk 0:02:56]}  Be6 {[%clk 0:02:57]} 8. c4 {[%clk 0:02:54]}  Nc6 {[%clk 0:02:57]} 9. cxd5 {[%clk 0:02:50]}  Nxd5 {[%clk 0:02:58]} 10. Nc3 {[%clk 0:02:35]}  Nxc3 {[%clk 0:02:56]} 11. bxc3 {[%clk 0:02:36]}  Qxd1 {[%clk 0:02:54]} 12. Rxd1 {[%clk 0:02:35]}  Rc8 {[%clk 0:02:55]} 13. Be3 {[%clk 0:02:31]}  b6 {[%clk 0:02:51]} 14. Bd5 {[%clk 0:02:01]}  Bxd5 {[%clk 0:02:42]} 15. Rxd5 {[%clk 0:02:02]}  Be7 {[%clk 0:02:38]} 16. Rad1 {[%clk 0:01:57]}  f6 {[%clk 0:02:38]} 17. f4 {[%clk 0:01:54]}  Kf7 {[%clk 0:02:30]} 18. Rd7 {[%clk 0:01:50]}  Rhd8 {[%clk 0:02:17]} 19. f5 {[%clk 0:01:47]}  g6 {[%clk 0:01:46]} 20. fxg6+ {[%clk 0:01:40]}  hxg6 {[%clk 0:01:45]} 21. Bf2 {[%clk 0:01:39]}  Ke6 {[%clk 0:01:44]} 22. Rxd8 {[%clk 0:01:38]}  Nxd8 {[%clk 0:01:40]} 23. Be1 {[%clk 0:01:37]}  Nf7 {[%clk 0:01:37]} 24. Kg2 {[%clk 0:01:30]}  Ng5 {[%clk 0:01:29]} 25. Rc1 {[%clk 0:01:14]}  Rc4 {[%clk 0:01:15]} 26. Nd2 {[%clk 0:01:11]}  Ra4 {[%clk 0:01:15]} 27. Rc2 {[%clk 0:01:11]}  f5 {[%clk 0:01:10]} 28. h4 {[%clk 0:01:09]}  Nf7 {[%clk 0:01:10]} 29. c4 {[%clk 0:01:07]}  Bc5 {[%clk 0:01:03]} 30. Nb3 {[%clk 0:01:05]}  Nd6 {[%clk 0:01:02]} 31. Nxc5+ {[%clk 0:01:00]}  bxc5 {[%clk 0:01:03]} 32. Bf2 {[%clk 0:01:00]}  Ne4 {[%clk 0:01:02]} 33. Be1 {[%clk 0:00:49]}  Kd6 {[%clk 0:01:00]} 34. Kf3 {[%clk 0:00:47]}  Ra3+ {[%clk 0:00:56]} 35. e3 {[%clk 0:00:47]}  Nf6 {[%clk 0:00:53]} 36. Bc3 {[%clk 0:00:42]}  Ra4 {[%clk 0:00:37]} 37. Bb2 {[%clk 0:00:38]}  Ke6 {[%clk 0:00:36]} 38. Bc1 {[%clk 0:00:37]}  Ne4 {[%clk 0:00:27]} 39. g4 {[%clk 0:00:36]}  Nd6 {[%clk 0:00:28]} 40. h5 {[%clk 0:00:32]}  fxg4+ {[%clk 0:00:25]} 41. Kxg4 {[%clk 0:00:31]}  Nxc4 {[%clk 0:00:23]} 42. Kg5 {[%clk 0:00:31]}  gxh5 {[%clk 0:00:23]} 43. Kxh5 {[%clk 0:00:32]}  Kd5 {[%clk 0:00:20]} 44. Kg6 {[%clk 0:00:27]}  Ke4 {[%clk 0:00:19]} 45. Kf6 {[%clk 0:00:26]}  Nb6 {[%clk 0:00:14]} 46. Rxc5 {[%clk 0:00:18]}  Nd7+ {[%clk 0:00:14]} 0-1

[Event "December 5 Early 2023"]
[Site "https://www.chess.com"]
[Date "2023.12.05"]
[Round "1"]
[White "Makarian, Rudik"]
[Black "Martinez Martin, David"]
[Result "1-0"]
[Board "21"]
[TimeControl "180+1"]
[WhiteFideId "44105681"]
[BlackFideId "2209748"]
[WhiteElo "2997"]
[BlackElo "2512"]
[WhiteTeam "FID"]
[BlackTeam "ESP"]
[WhiteClock "0:00:19"]
[BlackClock "0:00:03"]

1. d4 {[%clk 0:03:00]}  d5 {[%clk 0:02:58]} 2. c4 {[%clk 0:03:00]}  e6 {[%clk 0:02:58]} 3. Nf3 {[%clk 0:03:00]}  Nf6 {[%clk 0:02:56]} 4. g3 {[%clk 0:03:00]}  dxc4 {[%clk 0:02:54]} 5. Bg2 {[%clk 0:03:01]}  c5 {[%clk 0:02:54]} 6. O-O {[%clk 0:02:58]}  Nc6 {[%clk 0:02:55]} 7. Qa4 {[%clk 0:02:56]}  Bd7 {[%clk 0:02:51]} 8. Qxc4 {[%clk 0:02:55]}  b5 {[%clk 0:02:51]} 9. Qd3 {[%clk 0:02:54]}  c4 {[%clk 0:02:51]} 10. Qc2 {[%clk 0:02:54]}  Nb4 {[%clk 0:02:44]} 11. Qd1 {[%clk 0:02:48]}  Bc6 {[%clk 0:02:41]} 12. Nc3 {[%clk 0:02:44]}  Bd6 {[%clk 0:02:34]} 13. Bg5 {[%clk 0:02:39]}  h6 {[%clk 0:02:32]} 14. Bxf6 {[%clk 0:02:37]}  Qxf6 {[%clk 0:02:33]} 15. e4 {[%clk 0:02:35]}  Qe7 {[%clk 0:02:23]} 16. d5 {[%clk 0:02:30]}  Bd7 {[%clk 0:02:12]} 17. e5 {[%clk 0:02:27]}  Bc5 {[%clk 0:02:06]} 18. d6 {[%clk 0:02:26]}  Qd8 {[%clk 0:02:05]} 19. Ne4 {[%clk 0:02:19]}  Bb6 {[%clk 0:01:59]} 20. Nh4 {[%clk 0:02:10]}  Nd3 {[%clk 0:01:49]} 21. Qh5 {[%clk 0:02:09]}  Bd4 {[%clk 0:01:38]} 22. Rad1 {[%clk 0:02:01]}  Qb6 {[%clk 0:01:19]} 23. Kh1 {[%clk 0:01:52]}  O-O-O {[%clk 0:01:03]} 24. f4 {[%clk 0:01:28]}  g6 {[%clk 0:00:56]} 25. Qe2 {[%clk 0:01:26]}  Nxb2 {[%clk 0:00:48]} 26. Rxd4 {[%clk 0:00:55]}  Qxd4 {[%clk 0:00:47]} 27. Nf6 {[%clk 0:00:52]}  a5 {[%clk 0:00:07]} 28. Nf3 {[%clk 0:00:40]}  Qb6 {[%clk 0:00:01]} 29. Qxb2 {[%clk 0:00:39]}  b4 {[%clk 0:00:02]} 30. Nxd7 {[%clk 0:00:33]}  Rxd7 {[%clk 0:00:03]} 31. Qc2 {[%clk 0:00:33]}  Kb8 {[%clk 0:00:03]} 32. Qxc4 {[%clk 0:00:32]}  Rc8 {[%clk 0:00:03]} 33. Qe4 {[%clk 0:00:32]}  Qb7 {[%clk 0:00:03]} 34. Qe2 {[%clk 0:00:30]}  Qb6 {[%clk 0:00:03]} 35. Nd2 {[%clk 0:00:27]}  a4 {[%clk 0:00:03]} 36. Qe4 {[%clk 0:00:27]}  Qa7 {[%clk 0:00:03]} 37. Qxb4+ {[%clk 0:00:25]}  Rb7 {[%clk 0:00:04]} 38. Qxb7+ {[%clk 0:00:22]}  Qxb7 {[%clk 0:00:05]} 39. Bxb7 {[%clk 0:00:22]}  Kxb7 {[%clk 0:00:05]} 40. Rb1+ {[%clk 0:00:22]}  Ka7 {[%clk 0:00:06]} 41. Rb4 {[%clk 0:00:21]}  Rc2 {[%clk 0:00:06]} 42. Rxa4+ {[%clk 0:00:20]}  Kb7 {[%clk 0:00:03]} 43. Rb4+ {[%clk 0:00:19]} 1-0

[Event "December 5 Early 2023"]
[Site "https://www.chess.com"]
[Date "2023.12.05"]
[Round "1"]
[White "Matlakov, Maxim"]
[Black "Tikhonov, Viacheslav"]
[Result "1-0"]
[Board "23"]
[TimeControl "180+1"]
[WhiteFideId "4168003"]
[BlackFideId "44196407"]
[WhiteElo "2982"]
[BlackElo "2509"]
[WhiteTeam "RUS"]
[BlackTeam "RUS"]
[WhiteClock "0:01:16"]
[BlackClock "0:00:11"]

1. d4 {[%clk 0:03:00]}  f5 {[%clk 0:02:58]} 2. Bf4 {[%clk 0:02:59]}  Nf6 {[%clk 0:02:57]} 3. e3 {[%clk 0:02:59]}  g6 {[%clk 0:02:57]} 4. h4 {[%clk 0:02:59]}  h6 {[%clk 0:02:57]} 5. Nc3 {[%clk 0:02:57]}  Bg7 {[%clk 0:02:57]} 6. Qf3 {[%clk 0:02:57]}  O-O {[%clk 0:02:49]} 7. Qg3 {[%clk 0:02:57]}  Nh5 {[%clk 0:02:42]} 8. Qxg6 {[%clk 0:02:56]}  Nxf4 {[%clk 0:02:42]} 9. exf4 {[%clk 0:02:56]}  c5 {[%clk 0:02:39]} 10. dxc5 {[%clk 0:02:49]}  Qa5 {[%clk 0:02:15]} 11. Nf3 {[%clk 0:02:16]}  Qxc5 {[%clk 0:01:52]} 12. Ng5 {[%clk 0:02:15]}  Rf6 {[%clk 0:01:47]} 13. Qh7+ {[%clk 0:01:46]}  Kf8 {[%clk 0:01:47]} 14. O-O-O {[%clk 0:01:45]}  Qxf2 {[%clk 0:01:20]} 15. Nd5 {[%clk 0:01:43]}  Nc6 {[%clk 0:00:26]} 16. Bc4 {[%clk 0:01:31]}  e6 {[%clk 0:00:14]} 17. Nxf6 {[%clk 0:01:28]}  Qxf4+ {[%clk 0:00:12]} 18. Kb1 {[%clk 0:01:28]}  Qxc4 {[%clk 0:00:12]} 19. Qg8+ {[%clk 0:01:22]}  Ke7 {[%clk 0:00:12]} 20. Qxg7+ {[%clk 0:01:16]}  Kd8 {[%clk 0:00:12]} 21. Rxd7+ {[%clk 0:01:15]}  Bxd7 {[%clk 0:00:11]} 22. Qxd7# {[%clk 0:01:16]} 1-0

[Event "December 5 Early 2023"]
[Site "https://www.chess.com"]
[Date "2023.12.05"]
[Round "1"]
[White "Muetsch, Annmarie"]
[Black "Durarbayli, Vasif"]
[Result "0-1"]
[Board "24"]
[TimeControl "180+1"]
[WhiteFideId "12971367"]
[BlackFideId "13402935"]
[WhiteElo "2508"]
[BlackElo "2975"]
[WhiteTeam "GER"]
[BlackTeam "AZE"]
[WhiteClock "0:00:00"]
[BlackClock "0:00:12"]

1. d4 {[%clk 0:03:00]}  d5 {[%clk 0:02:56]} 2. Bg5 {[%clk 0:02:59]}  h6 {[%clk 0:02:50]} 3. Bh4 {[%clk 0:02:59]}  Nd7 {[%clk 0:02:50]} 4. e3 {[%clk 0:02:57]}  Ngf6 {[%clk 0:02:50]} 5. Nf3 {[%clk 0:02:56]}  e6 {[%clk 0:02:50]} 6. Be2 {[%clk 0:02:54]}  c5 {[%clk 0:02:49]} 7. O-O {[%clk 0:02:53]}  Qb6 {[%clk 0:02:46]} 8. b3 {[%clk 0:02:51]}  Be7 {[%clk 0:02:30]} 9. c4 {[%clk 0:02:49]}  dxc4 {[%clk 0:02:28]} 10. Bxc4 {[%clk 0:02:47]}  cxd4 {[%clk 0:02:24]} 11. Nxd4 {[%clk 0:02:45]}  O-O {[%clk 0:02:20]} 12. Nc3 {[%clk 0:02:44]}  Ne5 {[%clk 0:02:13]} 13. Be2 {[%clk 0:02:32]}  Ng6 {[%clk 0:02:02]} 14. Bg3 {[%clk 0:02:30]}  Rd8 {[%clk 0:01:53]} 15. Qc2 {[%clk 0:02:13]}  Bd7 {[%clk 0:01:52]} 16. Bd3 {[%clk 0:01:36]}  Nf8 {[%clk 0:01:39]} 17. Bb5 {[%clk 0:01:29]}  Rac8 {[%clk 0:01:39]} 18. Bxd7 {[%clk 0:01:28]}  N8xd7 {[%clk 0:01:21]} 19. Qb2 {[%clk 0:01:21]}  Qa5 {[%clk 0:01:13]} 20. Nd1 {[%clk 0:00:52]}  Ne4 {[%clk 0:01:00]} 21. Qe2 {[%clk 0:00:40]}  Bf6 {[%clk 0:00:39]} 22. Nb2 {[%clk 0:00:34]}  Nc3 {[%clk 0:00:25]} 23. Qf3 {[%clk 0:00:29]}  e5 {[%clk 0:00:24]} 24. Nc4 {[%clk 0:00:14]}  Rxc4 {[%clk 0:00:19]} 25. bxc4 {[%clk 0:00:15]}  exd4 {[%clk 0:00:19]} 26. exd4 {[%clk 0:00:15]}  Bxd4 {[%clk 0:00:20]} 27. Rac1 {[%clk 0:00:07]}  Nb6 {[%clk 0:00:15]} 28. Kh1 {[%clk 0:00:06]}  Nxc4 {[%clk 0:00:12]} 29. Qg4 {[%clk 0:00:06]}  h5 {[%clk 0:00:11]} 30. Qh3 {[%clk 0:00:03]}  Qd5 {[%clk 0:00:09]} 31. Bh4 {[%clk 0:00:03]}  Rd6 {[%clk 0:00:08]} 32. Rxc3 {[%clk 0:00:02]}  Bxc3 {[%clk 0:00:08]} 33. Qxc3 {[%clk 0:00:02]}  Qd4 {[%clk 0:00:09]} 34. Qxd4 {[%clk 0:00:02]}  Rxd4 {[%clk 0:00:10]} 35. Bg3 {[%clk 0:00:02]}  Rd2 {[%clk 0:00:10]} 36. h3 {[%clk 0:00:01]}  Rxa2 {[%clk 0:00:11]} 37. Rc1 {[%clk 0:00:01]}  b5 {[%clk 0:00:11]} 38. Rd1 {[%clk 0:00:01]}  Rd2 {[%clk 0:00:11]} 39. Re1 {[%clk 0:00:01]}  a5 {[%clk 0:00:11]} 40. Re8+ {[%clk 0:00:01]}  Kh7 {[%clk 0:00:12]} 41. Rb8 {[%clk 0:00:00]}  b4 {[%clk 0:00:12]} 0-1